fUST/lending_fUST_20250326
["ID","MTS","AMOUNT","RATE_DAILY","PERIOD"]
[356686162,1742952432899,-500.0,0.00011232,2]
[356686163,1742952432921,-500.0,0.00011232,2]
[356686164,1742952432944,-709.5,0.00011232,2]
[356686165,1742952432965,-675.56,0.00011232,2]
[356686166,1742952432985,-620.76,0.00011232,2]
[356686167,1742952433007,-500.0,0.00011232,2]
[356686168,1742952433028,-500.0,0.00011232,2]
[356686169,1742952433049,-500.0,0.00011232,2]
[356686170,1742952433070,-500.0,0.00011232,2]
[356686171,1742952433096,-500.0,0.00011232,2]
[356686172,1742952433119,-500.0,0.00011232,2]
[356686173,1742952433146,-500.0,0.00011232,2]
[356686174,1742952433167,-500.0,0.00011232,2]
[356686175,1742952433189,-500.0,0.00011232,2]
[356686176,1742952433209,-500.0,0.00011232,2]
[356686177,1742952433231,-868.93,0.00011232,2]
[356686178,1742952433251,-500.0,0.00011232,2]
[356686179,1742952433272,-500.0,0.00011232,2]
[356686180,1742952433292,-466.62,0.00011232,2]
[356686181,1742952433313,-500.0,0.00011232,2]
[356686182,1742952433335,-500.0,0.00011232,2]
[356686183,1742952433356,-636.2,0.00011232,2]
[356686184,1742952433381,-500.0,0.00011232,2]
[356686185,1742952433403,-621.88,0.00011232,2]
[356686186,1742952433424,-500.0,0.00011232,2]
[356686187,1742952433446,-500.0,0.00011232,2]
[356686188,1742952433466,-500.0,0.00011232,2]
[356686189,1742952433487,-500.0,0.00011232,2]
[356686190,1742952433507,-500.0,0.00011232,2]
[356686191,1742952433528,-500.0,0.00011232,2]
[356686192,1742952433549,-500.0,0.00011232,2]
[356686193,1742952433571,-1564.24,0.00011232,2]
[356686194,1742952433593,-518.68,0.00011232,2]
[356686195,1742952433614,-500.0,0.00011232,2]
[356686196,1742952433636,-500.0,0.00011232,2]
[356686197,1742952433658,-500.0,0.00011232,2]
[356686198,1742952433679,-500.0,0.00011232,2]
[356686199,1742952433700,-637.77,0.00011232,2]
[356686200,1742952433723,-500.0,0.00011232,2]
[356686201,1742952433746,-1819.43,0.00011232,2]
[356686202,1742952433768,-500.0,0.00011232,2]
[356686203,1742952433790,-662.13,0.00011232,2]
[356686204,1742952433812,-500.0,0.00011232,2]
[356686205,1742952433834,-500.0,0.00011232,2]
[356686206,1742952433862,-500.0,0.00011232,2]
[356686207,1742952433884,-500.0,0.00011232,2]
[356686208,1742952433908,-500.0,0.00011232,2]
[356686209,1742952433932,-740.13,0.00011232,2]
[356686210,1742952433959,-500.0,0.00011232,2]
[356686211,1742952433982,-1145.16,0.00011232,2]
[356686212,1742952434004,-500.0,0.00011232,2]
[356686213,1742952434027,-500.0,0.00011232,2]
[356686214,1742952434049,-500.0,0.00011232,2]
[356686215,1742952434072,-225.94,0.00011232,2]
[356686216,1742952434094,-500.0,0.00011232,2]
[356686217,1742952434115,-500.0,0.00011232,2]
[356686218,1742952434140,-2405.24,0.00011232,2]
[356686219,1742952434162,-500.0,0.00011232,2]
[356686220,1742952434186,-500.0,0.00011232,2]
[356686221,1742952434208,-500.0,0.00011232,2]
[356686222,1742952434230,-500.0,0.00011232,2]
[356686223,1742952434253,-500.0,0.00011232,2]
[356686224,1742952434274,-500.0,0.00011232,2]
[356686225,1742952434295,-500.0,0.00011232,2]
[356686226,1742952434317,-595.63,0.00011232,2]
[356686227,1742952434338,-500.0,0.00011232,2]
[356686228,1742952434361,-500.0,0.00011232,2]
[356686229,1742952434384,-500.0,0.00011232,2]
[356686230,1742952434405,-636.92,0.00011232,2]
[356686231,1742952434427,-500.0,0.00011232,2]
[356686232,1742952434450,-500.0,0.00011232,2]
[356686233,1742952434473,-500.0,0.00011232,2]
[356686234,1742952434494,-500.0,0.00011232,2]
[356686235,1742952434515,-500.0,0.00011232,2]
[356686236,1742952434537,-500.0,0.00011232,2]
[356686237,1742952434559,-520.06,0.00011232,2]
[356686238,1742952434579,-500.0,0.00011232,2]
[356686239,1742952434601,-500.0,0.00011232,2]
[356686240,1742952434622,-500.0,0.00011232,2]
[356686241,1742952434646,-505.53670313,0.00011232,2]
[356686242,1742952434667,-500.0,0.00011232,2]
[356686243,1742952434688,-500.0,0.00011232,2]
[356686244,1742952434711,-500.0,0.00011232,2]
[356686245,1742952434733,-259.15,0.00011232,2]
[356686246,1742952434753,-500.0,0.00011232,2]
[356686247,1742952434775,-500.0,0.00011232,2]
[356686248,1742952434796,-500.0,0.00011232,2]
[356686249,1742952434817,-500.0,0.00011232,2]
[356686250,1742952434838,-500.0,0.00011232,2]
[356686251,1742952434862,-500.0,0.00011232,2]
[356686252,1742952434884,-500.0,0.00011232,2]
[356686253,1742952434905,-390.44,0.00011232,2]
[356686254,1742952434927,-857.5,0.00011232,2]
[356686255,1742952434952,-500.0,0.00011232,2]
[356686256,1742952434974,-500.0,0.00011232,2]
[356686257,1742952434995,-500.0,0.00011232,2]
[356686258,1742952435017,-500.0,0.00011232,2]
[356686259,1742952435039,-537.01,0.00011232,2]
[356686260,1742952435061,-500.0,0.00011232,2]
[356686261,1742952435081,-500.0,0.00011232,2]
[356686262,1742952435102,-500.0,0.00011232,2]
[356686263,1742952435124,-500.0,0.00011232,2]
[356686264,1742952435144,-500.0,0.00011232,2]
[356686265,1742952435165,-579.31,0.00011232,2]
[356686266,1742952435186,-581.01,0.00011232,2]
[356686267,1742952435340,-1536.3,0.00011232,2]
[356686268,1742952435367,-500.0,0.00011232,2]
[356686269,1742952435388,-500.0,0.00011232,2]
[356686270,1742952435409,-500.0,0.00011273,2]
[356686271,1742952435429,-500.0,0.00011506,2]
[356686272,1742952435452,-500.0,0.00011506,2]
[356686273,1742952435472,-500.0,0.00011506,2]
[356686274,1742952435495,-500.0,0.00011506,2]
[356686275,1742952435516,-512.14257488,0.00011506,2]
[356686276,1742952435537,-500.0,0.00011506,2]
[356686277,1742952435558,-500.0,0.00011506,2]
[356686278,1742952435579,-500.0,0.00011506,2]
[356686279,1742952435600,-500.0,0.00011506,2]
[356686280,1742952435621,-500.0,0.00011506,2]
[356686281,1742952435642,-500.0,0.00011506,2]
[356686282,1742952435662,-500.0,0.00011506,2]
[356686283,1742952435683,-500.0,0.00011506,2]
[356686284,1742952435704,-500.0,0.00011506,2]
[356686285,1742952435725,-572.42486232,0.00011506,2]
[356686286,1742952435747,-500.0,0.00011506,2]
[356686287,1742952435768,-500.0,0.00011506,2]
[356686288,1742952435788,-500.0,0.00011506,2]
[356686289,1742952435809,-500.0,0.00011506,2]
[356686290,1742952435831,-500.0,0.00011506,2]
[356686291,1742952435854,-500.0,0.00011506,2]
[356686292,1742952435875,-500.0,0.00011506,2]
[356686293,1742952435897,-252.2,0.00011506,2]
[356686294,1742952435919,-615.23,0.00011506,2]
[356686295,1742952435940,-500.0,0.00011506,2]
[356686296,1742952435962,-500.0,0.00011506,2]
[356686297,1742952435984,-1028.79,0.00011506,2]
[356686298,1742952436005,-500.0,0.00011506,2]
[356686299,1742952436026,-500.0,0.00011506,2]
[356686300,1742952436047,-709.5,0.00011506,2]
[356686301,1742952436069,-675.56,0.00011506,2]
[356686302,1742952436090,-620.76,0.00011506,2]
[356686303,1742952436111,-500.0,0.00011506,2]
[356686304,1742952436132,-500.0,0.00011506,2]
[356686305,1742952436153,-500.0,0.00011506,2]
[356686306,1742952436175,-500.0,0.00011506,2]
[356686307,1742952436196,-500.0,0.00011506,2]
[356686308,1742952436218,-500.0,0.00011506,2]
[356686309,1742952436238,-500.0,0.00011506,2]
[356686310,1742952436259,-473.90162021,0.00011506,2]
[356686321,1742952566715,-150.39660977,0.0001,2]
[356686322,1742952569150,-594.0858,0.0001,2]
[356686339,1742952632710,-105.51759023,0.0001,2]
[356686340,1742952632720,-300.0,0.00010857,2]
[356686341,1742952632730,-557.03119153,0.00010857,2]
[356686342,1742952632739,-500.0,0.00010857,2]
[356686343,1742952632748,-66680.39878559,0.00010858,2]
[356686344,1742952632757,-500.0,0.00010958,2]
[356686345,1742952632766,-500.0,0.00010958,2]
[356686346,1742952632775,-500.0,0.00010958,2]
[356686347,1742952632784,-500.0,0.00010958,2]
[356686348,1742952632794,-1433.89,0.00010958,2]
[356686349,1742952632803,-644.44,0.00010958,2]
[356686350,1742952632812,-500.0,0.00010958,2]
[356686351,1742952632821,-1667.81,0.00010958,2]
[356686352,1742952632831,-500.0,0.00010958,2]
[356686353,1742952632840,-500.0,0.00010958,2]
[356686354,1742952632850,-606.95,0.00010958,2]
[356686355,1742952632859,-615.01,0.00010958,2]
[356686356,1742952632868,-500.0,0.00010958,2]
[356686357,1742952632877,-500.0,0.00010958,2]
[356686358,1742952632886,-711.24,0.00010958,2]
[356686359,1742952632895,-1088.8,0.00010958,2]
[356686360,1742952632907,-500.0,0.00010958,2]
[356686361,1742952632916,-900.19,0.00010958,2]
[356686362,1742952632926,-500.0,0.00010958,2]
[356686363,1742952632936,-678.45,0.00010958,2]
[356686364,1742952632946,-445.53,0.00010958,2]
[356686365,1742952632955,-313.96,0.00010958,2]
[356686366,1742952632964,-500.0,0.00010958,2]
[356686367,1742952632973,-2204.81,0.00010958,2]
[356686368,1742952632984,-620.82,0.00010958,2]
[356686369,1742952632993,-248.36,0.00010958,2]
[356686370,1742952633002,-500.0,0.00010958,2]
[356686371,1742952633012,-591.11,0.00010958,2]
[356686372,1742952633021,-500.0,0.00010958,2]
[356686373,1742952633031,-543.17,0.00010958,2]
[356686374,1742952633042,-500.0,0.00010958,2]
[356686375,1742952633052,-344.93,0.00010958,2]
[356686376,1742952633061,-500.0,0.00010958,2]
[356686377,1742952633071,-500.0,0.00010958,2]
[356686378,1742952633081,-500.65,0.00010958,2]
[356686379,1742952633093,-500.0,0.00010958,2]
[356686380,1742952633103,-500.0,0.00010958,2]
[356686381,1742952633113,-500.0,0.00010958,2]
[356686382,1742952633123,-184.7,0.00010958,2]
[356686383,1742952633133,-620.86,0.00010958,2]
[356686384,1742952633143,-500.0,0.00010958,2]
[356686385,1742952633153,-500.0,0.00010958,2]
[356686386,1742952633162,-500.0,0.00010958,2]
[356686387,1742952633173,-500.0,0.00010958,2]
[356686388,1742952633182,-500.0,0.00010958,2]
[356686389,1742952633192,-500.0,0.00010958,2]
[356686390,1742952633202,-471.97190177,0.00010958,2]
[356686391,1742952633212,-500.0,0.00010958,2]
[356686392,1742952633222,-500.0,0.00010958,2]
[356686393,1742952633232,-550.38595613,0.00010958,2]
[356686394,1742952633242,-500.0,0.00010958,2]
[356686395,1742952633252,-500.0,0.00010958,2]
[356686396,1742952633262,-431.09476244,0.00010958,2]
[356686397,1742952633271,-1414.67,0.00010958,2]
[356686398,1742952633281,-787.55,0.00010958,2]
[356686399,1742952633291,-278.19878408,0.00010958,2]
[356686400,1742952633301,-2190.6078019,0.00010958,2]
[356686401,1742952633311,-500.0,0.00011232,2]
[356686402,1742952633321,-500.0,0.00011232,2]
[356686403,1742952633330,-500.0,0.00011232,2]
[356686404,1742952633340,-1433.89,0.00011232,2]
[356686405,1742952633350,-500.0,0.00011232,2]
[356686406,1742952633360,-1667.81,0.00011232,2]
[356686407,1742952633371,-500.0,0.00011232,2]
[356686408,1742952633382,-500.0,0.00011232,2]
[356686409,1742952633391,-606.95,0.00011232,2]
[356686410,1742952633401,-500.0,0.00011232,2]
[356686411,1742952633410,-500.0,0.00011232,2]
[356686412,1742952633419,-711.24,0.00011232,2]
[356686413,1742952633429,-1088.8,0.00011232,2]
[356686414,1742952633439,-500.0,0.00011232,2]
[356686415,1742952633449,-900.19,0.00011232,2]
[356686416,1742952633458,-500.0,0.00011232,2]
[356686417,1742952633468,-678.45,0.00011232,2]
[356686418,1742952633477,-500.0,0.00011232,2]
[356686419,1742952633487,-2204.81,0.00011232,2]
[356686420,1742952633496,-620.82,0.00011232,2]
[356686421,1742952633506,-500.0,0.00011232,2]
[356686422,1742952633695,-591.11,0.00011232,2]
[356686423,1742952633706,-500.0,0.00011232,2]
[356686424,1742952633716,-543.17,0.00011232,2]
[356686425,1742952633725,-638.57,0.00011232,2]
[356686426,1742952633734,-500.0,0.00011232,2]
[356686427,1742952633743,-500.0,0.00011232,2]
[356686428,1742952633754,-500.0,0.00011232,2]
[356686429,1742952633763,-500.0,0.00011232,2]
[356686430,1742952633772,-389.44,0.00011232,2]
[356686431,1742952633781,-496.1715807,0.00011232,2]
[356686432,1742952633794,-3.8284193,0.00011232,2]
[356686433,1742952633803,-482.97252533,0.00011232,2]
[356686434,1742952633819,-17.02747467,0.00011232,2]
[356686435,1742952633828,-500.0,0.00011232,2]
[356686436,1742952633837,-500.0,0.00011232,2]
[356686437,1742952633848,-136.43161175,0.00011232,2]
[356686438,1742952633859,-276.05519761,0.00011232,2]
[356686439,1742952633869,-500.0,0.00011232,2]
[356686440,1742952633878,-333.43777532,0.00011232,2]
[356686441,1742952633887,-595.11896752,0.00011232,2]
[356686442,1742952633897,-500.0,0.00011232,2]
[356686443,1742952633908,-500.0,0.00011232,2]
[356686444,1742952633918,-1414.67,0.00011232,2]
[356686445,1742952633927,-787.55,0.00011232,2]
[356686446,1742952633945,-155.99188264,0.00011406,2]
[356686447,1742952633957,-26.09837979,0.00011506,2]
[356686448,1742952633967,-500.0,0.00011506,2]
[356686449,1742952633977,-868.93,0.00011506,2]
[356686450,1742952633989,-500.0,0.00011506,2]
[356686451,1742952634000,-500.0,0.00011506,2]
[356686452,1742952634010,-500.0,0.00011506,2]
[356686453,1742952634019,-500.0,0.00011506,2]
[356686454,1742952634029,-500.0,0.00011506,2]
[356686455,1742952634039,-500.0,0.00011506,2]
[356686456,1742952634049,-500.0,0.00011506,2]
[356686457,1742952634059,-500.0,0.00011506,2]
[356686458,1742952634069,-500.0,0.00011506,2]
[356686459,1742952634078,-500.0,0.00011506,2]
[356686460,1742952634088,-500.0,0.00011506,2]
[356686461,1742952634099,-465.84843405,0.00011506,2]
[356686462,1742952634112,-34.15156595,0.00011506,2]
[356686463,1742952634122,-500.0,0.00011506,2]
[356686464,1742952634132,-500.0,0.00011506,2]
[356686465,1742952634142,-500.0,0.00011506,2]
[356686466,1742952634152,-465.84843405,0.00011506,2]
[356686487,1742952642315,-580.83,0.00010958,2]
[356686488,1742952642325,-580.83,0.00011232,2]
[356686489,1742952642335,-34.15156595,0.00011506,2]
[356686490,1742952642344,-500.0,0.00011506,2]
[356686491,1742952642353,-571.71464849,0.00011506,2]
[356686492,1742952642363,-500.0,0.00011506,2]
[356686493,1742952642372,-500.0,0.00011506,2]
[356686494,1742952642381,-500.0,0.00011506,2]
[356686495,1742952642390,-247.84,0.00011506,2]
[356686496,1742952642400,-500.0,0.00011506,2]
[356686497,1742952642409,-500.0,0.00011506,2]
[356686498,1742952642418,-500.0,0.00011506,2]
[356686499,1742952642428,-500.0,0.00011506,2]
[356686500,1742952642437,-154.27664314,0.00011506,2]
[356686501,1742952642446,-500.0,0.00011506,2]
[356686502,1742952642456,-648.95,0.00011506,2]
[356686503,1742952642465,-500.0,0.00011506,2]
[356686504,1742952642474,-500.0,0.00011506,2]
[356686505,1742952642485,-500.0,0.00011506,2]
[356686506,1742952642494,-500.0,0.00011506,2]
[356686507,1742952642504,-500.0,0.00011506,2]
[356686508,1742952642513,-500.0,0.00011506,2]
[356686509,1742952642522,-500.0,0.00011506,2]
[356686510,1742952642531,-500.0,0.00011506,2]
[356686511,1742952642540,-500.0,0.00011506,2]
[356686512,1742952642549,-500.0,0.00011506,2]
[356686513,1742952642558,-500.0,0.00011506,2]
[356686514,1742952642568,-500.0,0.00011506,2]
[356686515,1742952642577,-500.0,0.00011506,2]
[356686516,1742952642587,-500.0,0.00011506,2]
[356686517,1742952642596,-581.01,0.00011506,2]
[356686518,1742952642607,-500.0,0.00011506,2]
[356686519,1742952642616,-500.0,0.00011506,2]
[356686520,1742952642625,-500.0,0.00011506,2]
[356686521,1742952642634,-500.0,0.00011506,2]
[356686522,1742952642643,-500.0,0.00011506,2]
[356686523,1742952642653,-1433.89,0.00011506,2]
[356686524,1742952642662,-500.0,0.00011506,2]
[356686525,1742952642671,-1667.81,0.00011506,2]
[356686526,1742952642681,-500.0,0.00011506,2]
[356686527,1742952642691,-247.98,0.00011506,2]
[356686528,1742952642701,-606.95,0.00011506,2]
[356686529,1742952642710,-500.0,0.00011506,2]
[356686530,1742952642720,-711.24,0.00011506,2]
[356686531,1742952642730,-500.0,0.00011506,2]
[356686532,1742952642740,-1088.8,0.00011506,2]
[356686533,1742952642749,-249.05706666,0.00011506,2]
[356686534,1742952643016,-0.00980412,0.00011506,2]
[356686560,1742952654527,449.46,0.00012,7]
[356686564,1742953297315,14068.94830864,0.00010957,3]
[356686565,1742953297341,50000.0,0.00010957,3]
[356686566,1742953306130,-170.02365279,0.00010157,2]
[356686576,1742953643102,-3.86223421,0.00010157,2]
[356686577,1742953643124,-1000.0,0.00010951,2]
[356686578,1742953643145,-1041.13311604,0.00010951,2]
[356686579,1742953643166,-300.0,0.00010956,2]
[356686580,1742953643187,-7172.44154166,0.00010957,3]
[356686581,1742953643209,-593.16996589,0.00010957,2]
[356686582,1742953643229,-170.02365279,0.00010957,2]
[356686583,1742953643250,-398.30631959,0.00010957,2]
[356686584,1742953643271,-500.0,0.00010958,2]
[356686585,1742953643293,-401.96623052,0.00010958,2]
[356686586,1742953643315,-500.0,0.00010958,2]
[356686587,1742953643336,-500.0,0.00010958,2]
[356686588,1742953643357,-827.24,0.00010958,2]
[356686589,1742953643377,-500.0,0.00010958,2]
[356686590,1742953643397,-570.8,0.00010958,2]
[356686591,1742953643418,-543.86,0.00010958,2]
[356686592,1742953643439,-500.0,0.00010958,2]
[356686593,1742953643460,-500.0,0.00010958,2]
[356686594,1742953643480,-502.95459218,0.00010958,2]
[356686595,1742953643505,-500.0,0.00010958,2]
[356686596,1742953643526,-500.0,0.00010958,2]
[356686597,1742953643548,-500.0,0.00010958,2]
[356686598,1742953643569,-500.0,0.00010958,2]
[356686599,1742953643591,-500.0,0.00010958,2]
[356686600,1742953643612,-500.0,0.00010958,2]
[356686601,1742953643632,-500.0,0.00010958,2]
[356686602,1742953643653,-500.0,0.00010958,2]
[356686603,1742953643675,-500.0,0.00010958,2]
[356686604,1742953643697,-500.0,0.00010958,2]
[356686605,1742953643719,-760.58,0.00010958,2]
[356686606,1742953643740,-500.0,0.00010958,2]
[356686607,1742953643761,-500.0,0.00010958,2]
[356686608,1742953643782,-500.0,0.00010958,2]
[356686609,1742953643802,-500.0,0.00010958,2]
[356686610,1742953643822,-500.0,0.00010958,2]
[356686611,1742953643843,-477.55875135,0.00010958,2]
[356686612,1742953643865,-500.0,0.00010958,2]
[356686613,1742953643885,-510.03327484,0.00010958,2]
[356686614,1742953643906,-500.0,0.00010958,2]
[356686615,1742953643926,-500.0,0.00010958,2]
[356686616,1742953643947,-500.0,0.00010958,2]
[356686617,1742953643969,-500.0,0.00010958,2]
[356686618,1742953643989,-500.0,0.00010958,2]
[356686619,1742953644009,-500.0,0.00010958,2]
[356686620,1742953644033,-500.0,0.00010958,2]
[356686621,1742953644056,-500.0,0.00010958,2]
[356686622,1742953644077,-500.0,0.00010958,2]
[356686623,1742953644097,-500.0,0.00010958,2]
[356686624,1742953644118,-500.0,0.00010958,2]
[356686625,1742953644140,-500.0,0.00010958,2]
[356686626,1742953644161,-500.0,0.00010958,2]
[356686627,1742953644182,-500.0,0.00010958,2]
[356686628,1742953644204,-500.0,0.00010958,2]
[356686629,1742953644225,-500.0,0.00010958,2]
[356686630,1742953644245,-287.78540194,0.00010958,2]
[356686631,1742953644267,-1282.23,0.00010958,2]
[356686632,1742953644288,-500.0,0.00010958,2]
[356686633,1742953644309,-539.36,0.00010958,2]
[356686634,1742953644331,-500.0,0.00010958,2]
[356686635,1742953644352,-1461.89,0.00010958,2]
[356686636,1742953644373,-500.0,0.00010958,2]
[356686637,1742953644394,-622.76,0.00010958,2]
[356686638,1742953644414,-500.0,0.00010958,2]
[356686639,1742953644435,-500.0,0.00010958,2]
[356686640,1742953644457,-286.85293989,0.00010958,2]
[356686641,1742953644479,-500.0,0.00010958,2]
[356686642,1742953644503,-500.0,0.00010958,2]
[356686643,1742953644523,-2032.82,0.00010958,2]
[356686644,1742953644546,-500.0,0.00010958,2]
[356686645,1742953644566,-500.0,0.00010958,2]
[356686646,1742953644592,-962.62,0.00010958,2]
[356686647,1742953644612,-500.0,0.00010958,2]
[356686648,1742953644632,-500.0,0.00010958,2]
[356686649,1742953644653,-636.4,0.00010958,2]
[356686650,1742953644674,-500.0,0.00010958,2]
[356686651,1742953644695,-500.0,0.00010958,2]
[356686652,1742953644717,-500.0,0.00010958,2]
[356686653,1742953644738,-500.0,0.00010958,2]
[356686654,1742953644761,-649.42160707,0.00010958,2]
[356686655,1742953644782,-506.26424864,0.00010958,2]
[356686656,1742953644804,-721.92,0.00010958,2]
[356686657,1742953644825,-174.66179543,0.00010958,2]
[356686658,1742953644845,-500.0,0.00010958,2]
[356686659,1742953644866,-500.0,0.00010958,2]
[356686660,1742953644886,-500.0,0.00010958,2]
[356686661,1742953644907,-500.0,0.00010958,2]
[356686662,1742953644928,-518.09,0.00010958,2]
[356686663,1742953644948,-506.01866327,0.00010958,2]
[356686664,1742953644969,-1296.78,0.00010958,2]
[356686665,1742953644990,-500.0,0.00010958,2]
[356686666,1742953645011,-532.43,0.00010958,2]
[356686667,1742953645032,-500.0,0.00010958,2]
[356686668,1742953645052,-500.0,0.00010958,2]
[356686669,1742953645073,-165.184945,0.00010959,2]
[356686670,1742953645095,-1690.62181192,0.00011132,2]
[356686671,1742953645117,-783.55593079,0.00011231,2]
[356686672,1742953645138,-581.7704239,0.00011232,2]
[356686673,1742953645159,-500.0,0.00011232,2]
[356686674,1742953645180,-496.96363778,0.00011232,2]
[356686675,1742953645201,-827.24,0.00011232,2]
[356686676,1742953645224,-500.0,0.00011232,2]
[356686677,1742953645246,-570.8,0.00011232,2]
[356686678,1742953645267,-543.86,0.00011232,2]
[356686679,1742953645288,-500.0,0.00011232,2]
[356686680,1742953645308,-500.0,0.00011232,2]
[356686681,1742953645328,-505.03920235,0.00011232,2]
[356686682,1742953645493,-500.0,0.00011232,2]
[356686683,1742953645514,-500.0,0.00011232,2]
[356686684,1742953645535,-500.0,0.00011232,2]
[356686685,1742953645558,-500.0,0.00011232,2]
[356686686,1742953645581,-500.0,0.00011232,2]
[356686687,1742953645601,-522.48675316,0.00011232,2]
[356686688,1742953645622,-500.0,0.00011232,2]
[356686689,1742953645645,-500.0,0.00011232,2]
[356686690,1742953645665,-177.77478836,0.00011232,2]
[356686691,1742953645686,-760.58,0.00011232,2]
[356686692,1742953645708,-500.0,0.00011232,2]
[356686693,1742953645729,-500.0,0.00011232,2]
[356686694,1742953645749,-500.0,0.00011232,2]
[356686695,1742953645768,-500.0,0.00011232,2]
[356686696,1742953645788,-500.0,0.00011232,2]
[356686697,1742953645808,-326.7218689,0.00011232,2]
[356686719,1742953832835,-300.0,0.00010957,2]
[356686720,1742953832844,-500.0,0.00010958,2]
[356686721,1742953832854,-186.78500438,0.00010958,2]
[356686722,1742953832863,-1228.8,0.00010958,2]
[356686723,1742953832872,-500.0,0.00010958,2]
[356686724,1742953832882,-516.89,0.00010958,2]
[356686725,1742953832891,-1400.98,0.00010958,2]
[356686726,1742953832900,-500.0,0.00010958,2]
[356686727,1742953832909,-500.0,0.00010958,2]
[356686729,1742953832919,-756.24,0.00010958,2]
[356686731,1742953832927,-596.82,0.00010958,2]
[356686733,1742953832937,-500.0,0.00010958,2]
[356686735,1742953832946,-1948.12,0.00010958,2]
[356686736,1742953832955,-523.24,0.00010958,2]
[356686737,1742953832964,-609.88,0.00010958,2]
[356686738,1742953832974,-500.0,0.00010958,2]
[356686739,1742953832983,-922.51,0.00010958,2]
[356686740,1742953832995,-500.0,0.00010958,2]
[356686741,1742953833004,-500.0,0.00010958,2]
[356686742,1742953833014,-500.0,0.00010958,2]
[356686743,1742953833024,-500.0,0.00010958,2]
[356686744,1742953833034,-500.0,0.00010958,2]
[356686745,1742953833044,-500.0,0.00010958,2]
[356686746,1742953833054,-500.0,0.00010958,2]
[356686747,1742953833064,-500.0,0.00010958,2]
[356686748,1742953833075,-691.84,0.00010958,2]
[356686749,1742953833085,-500.0,0.00010958,2]
[356686750,1742953833095,-500.0,0.00010958,2]
[356686751,1742953833105,-1242.75,0.00010958,2]
[356686752,1742953833115,-500.0,0.00010958,2]
[356686753,1742953833124,-500.0,0.00010958,2]
[356686754,1742953833135,-295.38795341,0.00011106,2]
[356686755,1742953833145,-500.0,0.00011231,2]
[356686756,1742953833156,-173.2781311,0.00011232,2]
[356686757,1742953833166,-500.0,0.00011232,2]
[356686758,1742953833177,-500.0,0.00011232,2]
[356686759,1742953833187,-500.0,0.00011232,2]
[356686760,1742953833197,-254.53460378,0.00011232,2]
[356686761,1742953833207,-500.0,0.00011232,2]
[356686762,1742953833217,-615.50318523,0.00011232,2]
[356686763,1742953833228,-500.0,0.00011232,2]
[356686764,1742953833238,-500.0,0.00011232,2]
[356686765,1742953833248,-500.0,0.00011232,2]
[356686766,1742953833258,-500.0,0.00011232,2]
[356686767,1742953833269,-597.31914331,0.00011232,2]
[356686768,1742953833279,-500.0,0.00011232,2]
[356686769,1742953833289,-500.0,0.00011232,2]